Workbook

Sheet Data Entry
C2: Input Data in positive numbers
E4: Fiscal Year
B5: INPUT ITEMS | E5: 2009 | F5: 2010 | G5: 2011
B7: INCOME STATEMENT
C9: Sales | E9: 10000000 | F9: 12000000 | G9: 20000000
C10: Costs of Goods Sold (COGS) | E10: 5000000 | F10: 7000000 | G10: 14000000
B12: Other Expenses
C13: R&D Expense | E13: 500000 | F13: 500000 | G13: 500000
C14: SG&A Expense | E14: 1000000 | F14: 1000000 | G14: 1000000 | I14: If the company is publicly-traded, what is the Ticker?
C15: Other Operating Expenses | E15: 200000 | F15: 200000 | G15: 200000 | I15: Ticker: | J15: AAPL
C17: Depreciation Expense | E17: 200000 | F17: 200000 | G17: 200000
C18: Interest Expense | E18: 500000 | F18: 500000 | G18: 500000
C20: Tax Rate
C21: Tax Expense | E21: 100000 | F21: 100000 | G21: 100000
B23: BALANCE SHEET
B25: Assets
C26: Cash | E26: 2000000 | F26: 2000000 | G26: 2000000
C27: Accounts Receivable | E27: 5000000 | F27: 5000000 | G27: 5000000
C28: Inventory | E28: 7000000 | F28: 7000000 | G28: 7000000
C29: Other Current Assets | E29: 1000000 | F29: 1000000 | G29: 1000000
C31: Net PP&E | E31: 20000000 | F31: 20000000 | G31: 20000000
B33: Liabilities
C34: Accounts Payable | E34: 4000000 | F34: 4000000 | G34: 4000000
C35: Short Term Notes Payable | E35: 5000000 | F35: 5000000 | G35: 5000000
C36: Other Current Liabilities | E36: 2000000 | F36: 2000000 | G36: 2000000
C38: Bank Loans & LT Debt | E38: 10000000 | F38: 10000000 | G38: 10000000
B40: Owner's Equity
C41: Common Stock | E41: 1000000 | F41: 1000000 | G41: 1000000
C42: Preferred Stock | E42: 2000000 | F42: 2000000 | G42: 2000000
C43: Retained Earnings | E43: 11000000 | F43: 11000000 | G43: 11000000
C45: Capital Expenditures (for CF statement) | E45: 200000 | F45: 200000 | G45: 200000

Sheet Income_Statement
B2: Historical Income Statement | E2: Fiscal Year
E3: ='Data Entry'!E5 -> 2009 | F3: ='Data Entry'!F5 -> 2010 | G3: ='Data Entry'!G5 -> 2011 | I3: CAGR
B5: Revenues | E5: ='Data Entry'!E9 -> 10000000 | F5: ='Data Entry'!F9 -> 12000000 | G5: ='Data Entry'!G9 -> 20000000 | I5: =RATE($G$3-$E$3,,E5,-G5) -> 0.4142135624
C6: COGS | E6: =-'Data Entry'!E10 -> -5000000 | F6: =-'Data Entry'!F10 -> -7000000 | G6: =-'Data Entry'!G10 -> -14000000
B7: Gross Profit | E7: =SUM(E5:E6) -> 5000000 | F7: =SUM(F5:F6) -> 5000000 | G7: 6000000
B8: Other Expenses
C9: R&D | E9: =-'Data Entry'!E13 -> -500000 | F9: =-'Data Entry'!F13 -> -500000 | G9: =-'Data Entry'!G13 -> -500000
C10: SG&A | E10: =-'Data Entry'!E14 -> -1000000 | F10: =-'Data Entry'!F14 -> -1000000 | G10: =-'Data Entry'!G14 -> -1000000
C11: Other | E11: =-'Data Entry'!E15 -> -200000 | F11: =-'Data Entry'!F15 -> -200000 | G11: =-'Data Entry'!G15 -> -200000
B12: EBITDA | E12: =E7+SUM(E9:E11) -> 3300000 | F12: =F7+SUM(F9:F11) -> 3300000 | G12: 4300000 | I12: =RATE($G$3-$E$3,,E12,-G12) -> 0.1415035274
C13: Depreciation Expense | E13: =-'Data Entry'!E17 -> -200000 | F13: =-'Data Entry'!F17 -> -200000 | G13: =-'Data Entry'!G17 -> -200000
C14: Interest Expense | E14: =-'Data Entry'!E18 -> -500000 | F14: =-'Data Entry'!F18 -> -500000 | G14: =-'Data Entry'!G18 -> -500000
B15: Profit (Loss) Before Tax | E15: =E12-SUM(E13:E14) -> 4000000 | F15: =F12-SUM(F13:F14) -> 4000000 | G15: 5000000
C16: Taxes | E16: =-'Data Entry'!E21 -> -100000 | F16: =-'Data Entry'!F21 -> -100000 | G16: =-'Data Entry'!G21 -> -100000
B17: Net Profit (Loss) | E17: =E15+E16 -> 3900000 | F17: =F15+F16 -> 3900000 | G17: 4900000 | I17: =RATE($G$3-$E$3,,E17,-G17) -> 0.1208970766
B20: Ratios
B22: Gross Margin | E22: =E7/E5 -> 0.5 | F22: =F7/F5 -> 0.4166666667 | G22: 0.3
B23: EBITDA Margin | E23: =E12/E5 -> 0.33 | F23: =F12/F5 -> 0.275 | G23: 0.215
B24: Net Margin | E24: =E17/E5 -> 0.39 | F24: =F17/F5 -> 0.325 | G24: 0.245

Sheet Balance_Sheet
B2: Historical Balance Sheet | E2: Fiscal Year End,
E3: ='Data Entry'!E5 -> 2009 | F3: ='Data Entry'!F5 -> 2010 | G3: ='Data Entry'!G5 -> 2011
B5: Assets
B6: Current Assets
C7: Cash | E7: ='Data Entry'!E26 -> 2000000 | F7: ='Data Entry'!F26 -> 2000000 | G7: ='Data Entry'!G26 -> 2000000
C8: Accounts Receivable | E8: ='Data Entry'!E27 -> 5000000 | F8: ='Data Entry'!F27 -> 5000000 | G8: ='Data Entry'!G27 -> 5000000
C9: Inventory | E9: ='Data Entry'!E28 -> 7000000 | F9: ='Data Entry'!F28 -> 7000000 | G9: ='Data Entry'!G28 -> 7000000
C10: Other Current Assets | E10: ='Data Entry'!E29 -> 1000000 | F10: ='Data Entry'!F29 -> 1000000 | G10: ='Data Entry'!G29 -> 1000000
C11: Total Current Assets | E11: =SUM(E7:E10) -> 15000000 | F11: =SUM(F7:F10) -> 15000000 | G11: 15000000
B12: Fixed Assets
C13: Net PP&E | E13: ='Data Entry'!E31 -> 20000000 | F13: ='Data Entry'!F31 -> 20000000 | G13: ='Data Entry'!G31 -> 20000000
C14: Total Fixed Assets | E14: =SUM(E13) -> 20000000 | F14: =SUM(F13) -> 20000000 | G14: 20000000
B16: Total Assets | E16: =E11+E14 -> 35000000 | F16: =F11+F14 -> 35000000 | G16: 35000000
B18: Liabilities
B19: Current Liabilities
C20: Accounts Payable | E20: ='Data Entry'!E34 -> 4000000 | F20: ='Data Entry'!F34 -> 4000000 | G20: ='Data Entry'!G34 -> 4000000
C21: Short Term Notes Payable | E21: ='Data Entry'!E35 -> 5000000 | F21: ='Data Entry'!F35 -> 5000000 | G21: ='Data Entry'!G35 -> 5000000
C22: Other Current Liabilities | E22: ='Data Entry'!E36 -> 2000000 | F22: ='Data Entry'!F36 -> 2000000 | G22: ='Data Entry'!G36 -> 2000000
C23: Total Current Liabilities | E23: =SUM(E20:E22) -> 11000000 | F23: =SUM(F20:F22) -> 11000000 | G23: 11000000
B24: Long-Term Liabilities
C25: Bank Loans & LT Debt | E25: ='Data Entry'!E38 -> 10000000 | F25: ='Data Entry'!F38 -> 10000000 | G25: ='Data Entry'!G38 -> 10000000
C26: Total LT Liabilities | E26: =SUM(E25) -> 10000000 | F26: =SUM(F25) -> 10000000 | G26: 10000000
B28: Total Liabilities | E28: =E23+E26 -> 21000000 | F28: =F23+F26 -> 21000000 | G28: 21000000
B30: Owner's Equity
C31: Common Stock | E31: ='Data Entry'!E41 -> 1000000 | F31: ='Data Entry'!F41 -> 1000000 | G31: ='Data Entry'!G41 -> 1000000
C32: Preferred Stock | E32: ='Data Entry'!E42 -> 2000000 | F32: ='Data Entry'!F42 -> 2000000 | G32: ='Data Entry'!G42 -> 2000000
C33: Retained Earnings | E33: ='Data Entry'!E43 -> 11000000 | F33: ='Data Entry'!F43 -> 11000000 | G33: ='Data Entry'!G43 -> 11000000
C34: Total Owner's Equity | E34: =SUM(E31:E33) -> 14000000 | F34: =SUM(F31:F33) -> 14000000 | G34: 14000000
B36: Total Liabilities & Owner's Equity | E36: =E28+E34 -> 35000000 | F36: =F28+F34 -> 35000000 | G36: 35000000
B39: Check | E39: =E16-E36 -> 0 | F39: =F16-F36 -> 0 | G39: 0
B42: Ratios
B43: Current Ratio | E43: =E11/E23 -> 1.363636364 | F43: =F11/F23 -> 1.363636364 | G43: 1.363636364
B44: Quick Ratio | E44: =(E11-E9)/E23 -> 0.7272727273 | F44: =(F11-F9)/F23 -> 0.7272727273 | G44: 0.7272727273
B45: Debt Ratio | E45: =E28/E16 -> 0.6 | F45: =F28/F16 -> 0.6 | G45: 0.6

Sheet Cash_Flow
B2: Historical Cash Flow Statement | F2: Fiscal Year
F3: ='Data Entry'!F5 -> 2010 | G3: ='Data Entry'!G5 -> 2011
B5: Net Income | F5: ='Data Entry'!F9-'Data Entry'!F10-'Data Entry'!F13-'Data Entry'!F14-'Data Entry'!F15-'Data Entry'!F17-'Data Entry'!F18-'Data Entry'!F21 -> 2500000 | G5: ='Data Entry'!G9-'Data Entry'!G10-'Data Entry'!G13-'Data Entry'!G14-'Data Entry'!G15-'Data Entry'!G17-'Data Entry'!G18-'Data Entry'!G21 -> 3500000
C6: + Depreciation | F6: ='Data Entry'!F17 -> 200000 | G6: ='Data Entry'!G17 -> 200000
C7: Change Accounts Receivable | F7: ='Data Entry'!E27-'Data Entry'!F27 -> 0 | G7: ='Data Entry'!F27-'Data Entry'!G27 -> 0
C8: Change Inventory | F8: ='Data Entry'!E28-'Data Entry'!F28 -> 0 | G8: ='Data Entry'!F28-'Data Entry'!G28 -> 0
C9: Change Other Current Assets | F9: ='Data Entry'!E29-'Data Entry'!F29 -> 0 | G9: ='Data Entry'!F29-'Data Entry'!G29 -> 0
C10: Change Accounts Payable | F10: ='Data Entry'!F34-'Data Entry'!E34 -> 0 | G10: ='Data Entry'!G34-'Data Entry'!F34 -> 0
C11: Change Other Current Liabilities | F11: ='Data Entry'!F36-'Data Entry'!E36 -> 0 | G11: ='Data Entry'!G36-'Data Entry'!F36 -> 0
D12: Operating Cash Flow | F12: =SUM(F5:F11) -> 2700000 | G12: =SUM(G5:G11) -> 3700000
B14: Capital Expenditures | F14: =-'Data Entry'!F45 -> -200000 | G14: =-'Data Entry'!G45 -> -200000
D15: Investing Cash Flow | F15: =SUM(F14) -> -200000 | G15: =SUM(G14) -> -200000
B17: Change Short Term Notes | F17: ='Data Entry'!F35-'Data Entry'!E35 -> 0 | G17: ='Data Entry'!G35-'Data Entry'!F35 -> 0
B18: Change Bank Loans | F18: ='Data Entry'!F38-'Data Entry'!E38 -> 0 | G18: ='Data Entry'!G38-'Data Entry'!F38 -> 0
B19: Change Common Stock | F19: ='Data Entry'!F41-'Data Entry'!E41 -> 0 | G19: ='Data Entry'!G41-'Data Entry'!F41 -> 0
B20: Change Preferred Stock | F20: ='Data Entry'!F42-'Data Entry'!E42 -> 0 | G20: ='Data Entry'!G42-'Data Entry'!F42 -> 0
D21: Financing Cash Flow | F21: =SUM(F17:F20) -> 0 | G21: =SUM(G17:G20) -> 0
B23: Change in Cash | F23: =F12+F15+F21 -> 2500000 | G23: =G12+G15+G21 -> 3500000

Sheet Ratios
B2: Ratio Analysis | D2: Fiscal Year
D3: ='Data Entry'!E5 -> 2009 | E3: ='Data Entry'!F5 -> 2010 | F3: ='Data Entry'!G5 -> 2011
B5: Liquidity | C5: Current Ratio | D5: =('Data Entry'!E26+'Data Entry'!E27+'Data Entry'!E28+'Data Entry'!E29)/(SUM('Data Entry'!E34:E36)) -> 1.363636364 | E5: =('Data Entry'!F26+'Data Entry'!F27+'Data Entry'!F28+'Data Entry'!F29)/(SUM('Data Entry'!F34:F36)) -> 1.363636364 | F5: =('Data Entry'!G26+'Data Entry'!G27+'Data Entry'!G28+'Data Entry'!G29)/(SUM('Data Entry'!G34:G36)) -> 1.363636364
C6: Quick Ratio | D6: =(SUM('Data Entry'!E26:E29)-'Data Entry'!E28)/SUM('Data Entry'!E34:E36) -> 0.7272727273 | E6: =(SUM('Data Entry'!F26:F29)-'Data Entry'!F28)/SUM('Data Entry'!F34:F36) -> 0.7272727273 | F6: =(SUM('Data Entry'!G26:G29)-'Data Entry'!G28)/SUM('Data Entry'!G34:G36) -> 0.7272727273
C7: Average Collection Period | D7: ='Data Entry'!E27/('Data Entry'!E9/365) -> 182.5 | E7: ='Data Entry'!F27/('Data Entry'!F9/365) -> 152.0833333 | F7: ='Data Entry'!G27/('Data Entry'!G9/365) -> 91.25
C8: AR Turnover | D8: ='Data Entry'!E9/'Data Entry'!E27 -> 2 | E8: ='Data Entry'!F9/'Data Entry'!F27 -> 2.4 | F8: ='Data Entry'!G9/'Data Entry'!G27 -> 4
C9: Inventory Turnover | D9: ='Data Entry'!E10/'Data Entry'!E28 -> 0.7142857143 | E9: ='Data Entry'!F10/'Data Entry'!F28 -> 1 | F9: ='Data Entry'!G10/'Data Entry'!G28 -> 2
B11: Efficiency | C11: Total Asset Turnover | D11: ='Data Entry'!E9/SUM('Data Entry'!E26:E31) -> 0.2857142857 | E11: ='Data Entry'!F9/SUM('Data Entry'!F26:F31) -> 0.3428571429 | F11: ='Data Entry'!G9/SUM('Data Entry'!G26:G31) -> 0.5714285714
C12: Fixed Asset Turnover | D12: ='Data Entry'!E9/'Data Entry'!E31 -> 0.5 | E12: ='Data Entry'!F9/'Data Entry'!F31 -> 0.6 | F12: ='Data Entry'!G9/'Data Entry'!G31 -> 1
C13: OIROI | D13: =('Data Entry'!E9-'Data Entry'!E10-'Data Entry'!E13-'Data Entry'!E14-'Data Entry'!E15-'Data Entry'!E17)/SUM('Data Entry'!E26:E31) -> 0.08857142857 | E13: =('Data Entry'!F9-'Data Entry'!F10-'Data Entry'!F13-'Data Entry'!F14-'Data Entry'!F15-'Data Entry'!F17)/SUM('Data Entry'!F26:F31) -> 0.08857142857 | F13: =('Data Entry'!G9-'Data Entry'!G10-'Data Entry'!G13-'Data Entry'!G14-'Data Entry'!G15-'Data Entry'!G17)/SUM('Data Entry'!G26:G31) -> 0.1171428571
B15: Financing | C15: Debt Ratio | D15: =SUM('Data Entry'!E34:E38)/SUM('Data Entry'!E26:E31) -> 0.6 | E15: =SUM('Data Entry'!F34:F38)/SUM('Data Entry'!F26:F31) -> 0.6 | F15: =SUM('Data Entry'!G34:G38)/SUM('Data Entry'!G26:G31) -> 0.6
C16: Times Interest Earned | D16: =('Data Entry'!E9-'Data Entry'!E10-'Data Entry'!E13-'Data Entry'!E14-'Data Entry'!E15-'Data Entry'!E17)/'Data Entry'!E18 -> 6.2 | E16: =('Data Entry'!F9-'Data Entry'!F10-'Data Entry'!F13-'Data Entry'!F14-'Data Entry'!F15-'Data Entry'!F17)/'Data Entry'!F18 -> 6.2 | F16: =('Data Entry'!G9-'Data Entry'!G10-'Data Entry'!G13-'Data Entry'!G14-'Data Entry'!G15-'Data Entry'!G17)/'Data Entry'!G18 -> 8.2
B18: Profitability | C18: ROA | D18: =('Data Entry'!E9-'Data Entry'!E10-'Data Entry'!E13-'Data Entry'!E14-'Data Entry'!E15-'Data Entry'!E17-'Data Entry'!E18-'Data Entry'!E21)/SUM('Data Entry'!E26:E31) -> 0.07142857143 | E18: =('Data Entry'!F9-'Data Entry'!F10-'Data Entry'!F13-'Data Entry'!F14-'Data Entry'!F15-'Data Entry'!F17-'Data Entry'!F18-'Data Entry'!F21)/SUM('Data Entry'!F26:F31) -> 0.07142857143 | F18: =('Data Entry'!G9-'Data Entry'!G10-'Data Entry'!G13-'Data Entry'!G14-'Data Entry'!G15-'Data Entry'!G17-'Data Entry'!G18-'Data Entry'!G21)/SUM('Data Entry'!G26:G31) -> 0.1
C19: ROE | D19: =('Data Entry'!E9-'Data Entry'!E10-'Data Entry'!E13-'Data Entry'!E14-'Data Entry'!E15-'Data Entry'!E17-'Data Entry'!E18-'Data Entry'!E21)/SUM('Data Entry'!E41:E43) -> 0.1785714286 | E19: =('Data Entry'!F9-'Data Entry'!F10-'Data Entry'!F13-'Data Entry'!F14-'Data Entry'!F15-'Data Entry'!F17-'Data Entry'!F18-'Data Entry'!F21)/SUM('Data Entry'!F41:F43) -> 0.1785714286 | F19: =('Data Entry'!G9-'Data Entry'!G10-'Data Entry'!G13-'Data Entry'!G14-'Data Entry'!G15-'Data Entry'!G17-'Data Entry'!G18-'Data Entry'!G21)/SUM('Data Entry'!G41:G43) -> 0.25
C20: Gross Margin | D20: ='Data Entry'!E10/'Data Entry'!E9 -> 0.5 | E20: ='Data Entry'!F10/'Data Entry'!F9 -> 0.5833333333 | F20: ='Data Entry'!G10/'Data Entry'!G9 -> 0.7
C21: EBITDA Margin | D21: =('Data Entry'!E9-'Data Entry'!E10-'Data Entry'!E13-'Data Entry'!E14-'Data Entry'!E15)/'Data Entry'!E9 -> 0.33 | E21: =('Data Entry'!F9-'Data Entry'!F10-'Data Entry'!F13-'Data Entry'!F14-'Data Entry'!F15)/'Data Entry'!F9 -> 0.275 | F21: =('Data Entry'!G9-'Data Entry'!G10-'Data Entry'!G13-'Data Entry'!G14-'Data Entry'!G15)/'Data Entry'!G9 -> 0.215
C22: Net Profit Margin | D22: =('Data Entry'!E9-'Data Entry'!E10-'Data Entry'!E13-'Data Entry'!E14-'Data Entry'!E15-'Data Entry'!E17-'Data Entry'!E18-'Data Entry'!E21)/'Data Entry'!E9 -> 0.25 | E22: =('Data Entry'!F9-'Data Entry'!F10-'Data Entry'!F13-'Data Entry'!F14-'Data Entry'!F15-'Data Entry'!F17-'Data Entry'!F18-'Data Entry'!F21)/'Data Entry'!F9 -> 0.2083333333 | F22: =('Data Entry'!G9-'Data Entry'!G10-'Data Entry'!G13-'Data Entry'!G14-'Data Entry'!G15-'Data Entry'!G17-'Data Entry'!G18-'Data Entry'!G21)/'Data Entry'!G9 -> 0.175
B24: Other | C24: Forward P/E | D24: 11.97
C25: Enterprise Value / EBITDA | D25: 11.84
C26: Beta | D26: 1
H100: AAPL
H101: Skip to search.
H102: New User? Register
H103: Sign In
H104: Help
H105: Preview Mail w/ Y! Toolbar
H107: Notifications Help
H109: Mail
H110: My Y!
H111: Yahoo!
H112: Yahoo! Finance
H113: Search | I113: Search Web
H115: Home
H116: Investing
H118: Market Overview
H119: Market Stats
H120: Stocks
H121: Mutual Funds
H122: ETFs
H123: Bonds
H124: Options
H125: Industries
H126: Currencies
H127: Education
H128: Commodities
H129: News
H131: Markets
H132: Investing Ideas
H133: Special Editions
H134: Company Finances
H135: Video
H136: Photos & Interactives
H137: RSS Feeds
H138: Personal Finance
H140: Saving & Spending
H141: Career & Education
H142: Lifestyle
H143: Insurance
H144: Loans
H145: Real Estate
H146: Retirement
H147: Taxes
H148: Lifelong Investing
H149: GLOSSARY
H150: My Portfolios
H152: Sign in to access My Portfolios
H153: Free trial of Real-Time Quotes
H154: EXCLUSIVES
H156: Breakout
H157: The Daily Ticker
H158: Daniel Gross
H159: Financially Fit
H160: FANTASY FINANCE
H161: Search for share prices
H162: Search for share prices
H163: Wed, Apr 18, 2012, 1:38PM EDT - U.S. Markets close in 2 hrs 22 mins
H164: Dow Down 0.57% Nasdaq Down 0.47%
H166: More On AAPL
H167: Quotes
H168: Summary
H169: Order Book
H170: Options
H171: Historical Prices
H172: Charts
H173: Interactive
H174: Basic Chart
H175: Basic Tech. Analysis
H176: News & Info
H177: Headlines
H178: Financial Blogs
H179: Company Events
H180: Message Boards
H181: Market Pulse
H182: Company
H183: Profile
H184: Key Statistics
H185: SEC Filings
H186: Competitors
H187: Industry
H188: Components
H189: Analyst Coverage
H190: Analyst Opinion
H191: Analyst Estimates
H192: Research Reports
H193: Star Analysts
H194: Ownership
H195: Major Holders
H196: Insider Transactions
H197: Insider Roster
H198: Financials
H199: Income Statement
H200: Balance Sheet
H201: Cash Flow
J202: Advertisement
H204: Apple Inc. (AAPL)
H206: -NasdaqGS
H207: 604.53 Down5.17(0.85%) 1:38PM EDT - Nasdaq Real Time Price
H208: Add to Portfolio
H209: Key Statistics | J209: Get Key Statistics for:
H210: Data provided by Capital IQ, except where noted. | L210: AdChoices
H211: Valuation Measures
H212: Market Cap (intraday)5: | I212: 565.22B
H213: Enterprise Value (Apr 18, 2012)3: | I213: 538.31B | L213: Trading Information
H214: Trailing P/E (ttm, intraday): | I214: 17.25 | L214: Stock Price History
H215: Forward P/E (fye Sep 24, 2013)1: | I215: 11.97 | L215: Beta: | M215: 1
H216: PEG Ratio (5 yr expected)1: | I216: 0.73 | L216: 52-Week Change3: | M216: 0.8046
H217: Price/Sales (ttm): | I217: 4.45 | L217: S&P500 52-Week Change3: | M217: 0.0595
H218: Price/Book (mrq): | I218: 6.31 | L218: 52-Week High (Apr 10, 2012)3: | M218: 644
H219: Enterprise Value/Revenue (ttm)3: | I219: 4.21 | L219: 52-Week Low (Jun 20, 2011)3: | M219: 310.5
H220: Enterprise Value/EBITDA (ttm)6: | I220: 11.84 | L220: 50-Day Moving Average3: | M220: 586.76
H221: Financial Highlights | L221: 200-Day Moving Average3: | M221: 460.57
H222: Fiscal Year | L222: Share Statistics
H223: Fiscal Year Ends: | I223: 2012-09-24 | L223: Avg Vol (3 month)3: | M223: 22173900
H224: Most Recent Quarter (mrq): | I224: 2011-12-31 | L224: Avg Vol (10 day)3: | M224: 29252200
H225: Profitability | L225: Shares Outstanding5: | M225: 932.37M
H226: Profit Margin (ttm): | I226: 0.258 | L226: Float: | M226: 931.67M
H227: Operating Margin (ttm): | I227: 0.3387 | L227: % Held by Insiders1: | M227: 0.0064
H228: Management Effectiveness | L228: % Held by Institutions1: | M228: 0.702
H229: Return on Assets (ttm): | I229: 0.2401 | L229: Shares Short (as of Mar 30, 2012)3: | M229: 9.68M
H230: Return on Equity (ttm): | I230: 0.4558 | L230: Short Ratio (as of Mar 30, 2012)3: | M230: 0.4
H231: Income Statement | L231: Short % of Float (as of Mar 30, 2012)3: | M231: 0.01
H232: Revenue (ttm): | I232: 127.84B | L232: Shares Short (prior month)3: | M232: 9.87M
H233: Revenue Per Share (ttm): | I233: 137.88 | L233: Dividends & Splits
H234: Qtrly Revenue Growth (yoy): | I234: 0.733 | L234: Forward Annual Dividend Rate4: | M234: N/A
H235: Gross Profit (ttm): | I235: 43.82B | L235: Forward Annual Dividend Yield4: | M235: N/A
H236: EBITDA (ttm)6: | I236: 45.45B | L236: Trailing Annual Dividend Yield3: | M236: N/A
H237: Net Income Avl to Common (ttm): | I237: 32.98B | L237: Trailing Annual Dividend Yield3: | M237: N/A
H238: Diluted EPS (ttm): | I238: 35.14 | L238: 5 Year Average Dividend Yield4: | M238: N/A
H239: Qtrly Earnings Growth (yoy): | I239: 1.176 | L239: Payout Ratio4: | M239: N/A
H240: Balance Sheet | L240: Dividend Date3: | M240: N/A
H241: Total Cash (mrq): | I241: 30.16B | L241: Ex-Dividend Date4: | M241: 1995-11-21
H242: Total Cash Per Share (mrq): | I242: 32.34 | L242: Last Split Factor (new per old)2: | M242: 02:01:00
H243: Total Debt (mrq): | I243: 0 | L243: Last Split Date3: | M243: 2005-02-28
H244: Total Debt/Equity (mrq): | I244: N/A
H245: Current Ratio (mrq): | I245: 1.58
H246: Book Value Per Share (mrq): | I246: 96.6
H247: Cash Flow Statement
H248: Operating Cash Flow (ttm): | I248: 45.31B
H249: Levered Free Cash Flow (ttm): | I249: 26.06B
H251: View Financials
H252: Income Statement - Balance Sheet - Cash Flow
H253: See Key Statistics Help for definitions of terms used.
H254: Abbreviation Guide: K = Thousands; M = Millions; B = Billions
H255: mrq = Most Recent Quarter (as of Dec 31, 2011)
H256: ttm = Trailing Twelve Months (as of Dec 31, 2011)
H257: yoy = Year Over Year (as of Dec 31, 2011)
H258: lfy = Last Fiscal Year (as of Sep 24, 2011)
H259: fye = Fiscal Year Ending
H260: 1 Data provided by Thomson Reuters
H261: 2 Data provided by EDGAR Online
H262: 3 Data derived from multiple sources or calculated by Yahoo! Finance
H263: 4 Data provided by Morningstar, Inc.
H264: 5 Shares outstanding is taken from the most recently filed quarterly or annual report and Market Cap is calculated using shares outstanding.
H265: 6 EBITDA is calculated by Capital IQ using methodology that may differ from that used by a company in its reporting
H267: Currency in USD.
H270: Copyright © 2012 Yahoo! Inc. All rights reserved. Privacy Policy - About Our Ads - Terms of Service - Copyright/IP Policy - Send Feedback - Yahoo! - ABC News Network
H271: Quotes for NYSE, Nasdaq and NYSEAmex are Real-time and sourced from Nasdaq Last Sale when available. If not available from NLS, quotes will appear delayed from primary listing source.
H272: See also delay times for other exchanges. Quotes and other information supplied by independent providers identified on the Yahoo! Finance partner page.Quotes are updated automatically, but will be turned off after 25 minutes of inactivity. Quotes are delayed at least 15 minutes. All information provided "as is" for informational purposes only, not intended for trading purposes or advice. Neither Yahoo! nor any of independent providers is liable for any informational errors, incompleteness, or delays, or for any actions taken in reliance on information contained herein. By accessing the Yahoo! site, you agree not to redistribute the information found therein.
H273: Fundamental company data provided by Capital IQ. Historical chart data and daily updates provided by Commodity Systems, Inc. (CSI). International historical chart data, daily updates, fund summary, fund performance, dividend data and Morningstar Index data provided by Morningstar, Inc. US Financials data provided by Edgar Online and all other Financials provided by Capital IQ. International historical chart data, daily updates, fundAnalyst estimates data provided by Thomson Financial Network. All data povided by Thomson Financial Network is based solely upon research information provided by third party analysts. Yahoo! has not reviewed, and in no way endorses the validity of such data. Yahoo! and ThomsonFN shall not be liable for any actions taken in reliance thereon.
H274: 95941353
